bitfinex/quotes_SOLUSD_20240829
["timestamp","ask_amount","ask_price","bid_price","bid_amount"]
[1724971110122,13.82962282,139.63,139.6,13.6187]
[1724971111529,13.82962282,139.65,139.6,24.3628]
[1724971112023,17.8952,139.71,139.6,24.3628]
[1724971112204,34.55799145,139.68,139.6,24.3628]
[1724971113004,34.55799145,139.68,139.62,17.905]
[1724971113331,34.55799145,139.7,139.62,17.905]
[1724971113826,7.1588,139.69,139.65,7.1607]
[1724971120327,7.1593,139.68,139.64,15.9747]
[1724971120547,41.71729145,139.68,139.64,23.1358]
[1724971121320,34.55799145,139.68,139.65,7.1607]
[1724971125742,34.55799145,139.68,139.64,41.0382]
[1724971125913,7.1598,139.67,139.64,15.9747]
[1724971126913,34.55799145,139.66,139.64,15.9747]
[1724971128842,41.71829145,139.66,139.64,15.9747]
[1724971130229,34.55799145,139.66,139.64,15.9747]
[1724971132034,13.82456912,139.65,139.64,15.9747]
[1724971133529,13.82456912,139.65,139.62,7.1622]
[1724971133734,13.82456912,139.63,139.61,17.9064]
[1724971136610,13.82456912,139.63,139.61,25.0691]
[1724971139735,13.82456912,139.63,139.61,17.9064]
[1724971143541,13.82456912,139.63,139.61,25.069]
[1724971144539,13.82456912,139.63,139.61,17.9064]
[1724971145740,13.82456912,139.63,139.61,25.069]
[1724971145919,7.1598,139.67,139.63,7.1616]
[1724971146123,20.98436912,139.67,139.63,7.1616]
[1724971146325,13.82456912,139.67,139.64,7.1611]
[1724971146537,13.82456912,139.69,139.65,7.1606]
[1724971147125,20.98336912,139.69,139.64,7.1612]
[1724971147537,13.82456912,139.67,139.64,7.1612]
[1724971148339,20.98326912,139.69,139.64,7.1612]
[1724971152733,20.98326912,139.69,139.65,7.1607]
[1724971154243,13.82456912,139.67,139.63,25.0652]
[1724971154618,13.82456912,139.65,139.63,25.0652]
[1724971155247,13.82456912,139.67,139.64,7.1612]
[1724971157037,13.82456912,139.67,139.65,7.1607]
[1724971157238,17.8923,139.73,139.65,7.1607]
[1724971157448,13.82456912,139.69,139.66,7.1601]
[1724971161045,13.82456912,139.69,139.65,41.5667]
[1724971161848,13.82456912,139.69,139.66,7.1601]
[1724971163865,13.15596209,139.75,139.7,7.158]
[1724971164184,13.15596209,139.75,139.67,17.8987]
[1724971164185,13.82456912,139.76,139.72,7.157]
[1724971166850,13.82456912,139.76,139.71,25.0508]
[1724971167556,7.1546,139.77,139.71,25.0508]
[1724971167733,20.97916912,139.77,139.72,7.157]
[1724971168054,13.82456912,139.77,139.73,23.0146]
[1724971176031,13.82456912,139.77,139.74,7.156]
[1724971176538,7.1526,139.81,139.76,7.155]
[1724971176855,13.82456912,139.8,139.76,7.155]
[1724971177058,20.97766912,139.8,139.75,26.46831221]
[1724971177731,20.97766912,139.8,139.75,25.0439]
[1724971179055,20.97766912,139.8,139.76,7.1549]
[1724971179253,7.1524,139.82,139.75,17.8884]
[1724971179459,10.36701632,139.85,139.8,7.153]
[1724971179638,26.0444,139.89,139.79,7.1535]
[1724971179639,20.97566912,139.84,139.79,7.1535]
[1724971180759,13.82456912,139.82,139.78,13.4994]
[1724971180949,13.82456912,139.83,139.79,7.1535]
[1724971182755,13.82456912,139.85,139.79,17.8829]
[1724971182966,7.149,139.88,139.82,7.1515]
[1724971183153,13.82456912,139.88,139.81,17.8803]
[1724971183352,13.82456912,139.9,139.86,7.1499]
[1724971183555,8.1729,139.93,139.85,15.8283]
[1724971183754,13.82456912,139.91,139.85,15.8283]
[1724971184260,13.82456912,139.89,139.85,22.9787]
[1724971185156,13.82456912,139.9,139.85,22.9787]
[1724971186348,20.97196912,139.91,139.85,22.9787]
[1724971187640,13.82456912,139.89,139.85,15.8283]
[1724971188768,13.82456912,139.89,139.85,22.9787]
[1724971189279,7.1474,139.91,139.86,7.1499]
[1724971190466,20.97246912,139.9,139.85,22.9788]
[1724971190945,13.82456912,139.9,139.86,7.1499]
[1724971193342,7.1495,139.87,139.85,15.8283]
[1724971193560,13.82456912,139.87,139.85,15.8283]
[1724971193736,13.82456912,139.89,139.85,16.46120084]
[1724971193941,13.82456912,139.89,139.85,23.61170084]
[1724971194161,20.97206912,139.91,139.85,33.7037]
[1724971194864,13.82456912,139.89,139.85,33.7037]
[1724971195035,13.82456912,139.89,139.85,15.8283]
[1724971195665,20.97316912,139.89,139.85,15.8283]
[1724971196240,13.82456912,139.87,139.85,15.8283]
[1724971196951,7.15,139.86,139.85,15.8283]
[1724971200053,20.97406912,139.87,139.85,15.8283]
[1724971200577,13.82456912,139.87,139.85,15.8283]
[1724971200867,20.97306912,139.89,139.85,15.8283]
[1724971204176,7.149,139.88,139.85,15.8283]
[1724971204348,13.82456912,139.87,139.85,15.8283]
[1724971205569,7.149,139.88,139.85,15.8283]
[1724971205879,13.82456912,139.89,139.86,7.1497]
[1724971206569,13.82456912,139.89,139.85,40.8544]
[1724971208779,13.82456912,139.9,139.86,7.1498]
[1724971210474,20.97256912,139.9,139.86,7.1498]
[1724971210862,20.97256912,139.9,139.85,40.8544]
[1724971217153,7.1475,139.91,139.86,7.1497]
[1724971217669,13.82456912,139.9,139.86,7.1497]
[1724971218180,20.97246912,139.9,139.86,7.1497]
[1724971218688,20.97246912,139.9,139.85,33.704]
[1724971218689,7.1484,139.89,139.85,33.704]
[1724971219095,13.82456912,139.88,139.85,33.704]
[1724971219270,20.97356912,139.88,139.85,15.8283]
[1724971219470,13.82456912,139.88,139.85,15.8283]
[1724971220283,20.97356912,139.88,139.85,15.8283]
[1724971220782,13.82456912,139.87,139.85,15.8283]
[1724971222161,20.97306912,139.89,139.85,15.8283]
[1724971222869,13.82456912,139.89,139.85,15.8283]
[1724971223368,21.01706697,139.94,139.85,15.8283]
[1724971223568,13.82456912,139.9,139.85,15.8283]
[1724971224293,13.82456912,139.9,139.86,7.15]
[1724971225386,13.82456912,139.88,139.85,15.8283]
[1724971226584,13.82456912,139.88,139.85,22.9787]
[1724971226963,13.82456912,139.88,139.85,15.8283]
[1724971229690,13.82456912,139.88,139.85,22.9787]
[1724971231669,13.82456912,139.88,139.85,15.8283]
[1724971231988,13.82456912,139.86,139.85,15.8283]
[1724971232192,13.82456912,139.86,139.82,15.9122]
[1724971232792,13.82456912,139.84,139.81,6.6076]
[1724971232995,13.82456912,139.82,139.79,15.3564]
[1724971233197,13.82456912,139.8,139.79,15.3564]
[1724971233370,13.82456912,139.82,139.79,15.3564]
[1724971233697,13.82456912,139.8,139.79,15.3564]
[1724971233882,13.82456912,139.82,139.79,15.3564]
[1724971234288,13.82456912,139.86,139.81,7.1524]
[1724971236001,20.97466912,139.86,139.81,7.1524]
[1724971236503,7.1501,139.86,139.81,7.1524]
[1724971236678,13.82456912,139.86,139.82,6.3628]
[1724971242282,20.97456912,139.86,139.82,6.3628]
[1724971242502,13.82456912,139.86,139.82,13.5147]
[1724971245388,13.82456912,139.86,139.82,6.3628]
[1724971246294,20.97466912,139.86,139.82,6.3628]
[1724971252608,7.40884107,139.91,139.83,16.0423]
[1724971252609,4.21034177,139.91,139.83,16.0423]
[1724971252790,13.82456912,139.88,139.83,16.0423]
[1724971254242,2.23385992,139.92,139.84,22.3996]
[1724971254395,2.23385992,139.92,139.85,61.0423]
[1724971254597,13.82456912,139.93,139.85,61.0423]
[1724971255388,20.97106912,139.93,139.88,25.0206]
[1724971255985,13.82456912,139.91,139.88,17.8717]
[1724971258591,13.82456912,139.93,139.9,16.0423]
[1724971259192,13.82456912,139.92,139.9,16.0423]
[1724971265826,3.29417506,139.97,139.9,16.0423]
[1724971266030,7.1447,139.97,139.91,7.1472]
[1724971266202,13.82456912,139.96,139.91,7.1472]
[1724971267320,20.96956912,139.96,139.91,7.1472]
[1724971267523,17.8563,140.01,139.92,7.1468]
[1724971267524,7.1438,139.98,139.92,7.1468]
[1724971267706,13.82456912,139.97,139.92,7.1468]
[1724971268426,20.96906912,139.97,139.92,7.1468]
[1724971268929,55.29827648,140.0,139.92,7.1468]
[1724971268930,7.1439,139.98,139.92,7.1468]
[1724971269128,13.82456912,139.97,139.92,7.1468]
[1724971269527,13.82456912,139.95,139.9,33.9113]
[1724971270139,13.82456912,139.95,139.91,7.1474]
[1724971270443,13.82456912,139.93,139.9,16.0423]
[1724971270618,13.82456912,139.91,139.9,16.0423]
[1724971271320,25.41397483,139.99,139.9,16.0423]
[1724971271502,3.07211041,140.0,139.91,1.42917744]
[1724971271707,13.82456912,139.96,139.91,1.42917744]
[1724971272411,13.82456912,139.96,139.92,7.1467]
[1724971272737,13.82456912,139.96,139.93,1.42905232]
[1724971274409,7.1428,140.01,139.94,28.9219]
[1724971274616,20.96756912,140.0,139.95,7.1453]
[1724971276514,7.143,140.0,139.95,7.1453]
[1724971276737,20.96756912,140.0,139.95,7.1453]
[1724971277219,20.96856912,139.98,139.94,21.7765]
[1724971277535,13.82456912,139.98,139.94,21.7765]
[1724971279633,20.96846912,139.98,139.94,21.7765]
[1724971280323,13.82456912,139.98,139.94,28.9223]
[1724971280711,20.96836912,139.98,139.94,28.9223]
[1724971281011,20.96836912,139.98,139.94,21.7765]
[1724971282535,13.82456912,139.98,139.94,28.9221]
[1724971285929,20.96836912,139.99,139.94,28.9221]
[1724971288022,13.82456912,139.97,139.94,21.7765]
[1724971288222,20.96896912,139.97,139.94,21.7765]
[1724971293641,13.82456912,139.97,139.94,21.7765]
[1724971294548,7.144,139.98,139.94,30.35124975]
[1724971295624,20.96796912,139.99,139.94,30.35124975]
[1724971296331,20.96796912,139.99,139.94,28.9223]
[1724971300564,7.1439,139.98,139.94,28.9223]
[1724971301744,20.96806912,139.99,139.94,28.9223]
[1724971302857,17.8541,140.03,139.94,21.7765]
[1724971302858,13.82456912,139.97,139.94,21.7765]
[1724971303458,20.96906912,139.97,139.94,21.7765]
[1724971306365,7.144,139.98,139.94,21.7765]
[1724971306571,20.96856912,139.98,139.94,23.20545493]
[1724971307138,20.96856912,139.98,139.94,21.7765]
[1724971307839,7.1437,139.99,139.94,21.7765]
[1724971308159,13.82456912,139.99,139.95,7.1453]
[1724971309041,20.96806912,139.99,139.95,7.1453]
[1724971312363,20.96746912,140.0,139.95,7.1453]
[1724971312536,20.96746912,140.0,139.96,1.42879438]
[1724971312734,20.96746912,140.0,139.95,7.1453]
[1724971313155,20.96746912,140.0,139.96,1.42873422]
[1724971313962,13.82456912,140.02,139.96,19.29013422]
[1724971314148,13.82456912,140.02,139.97,16.1159]
[1724971314343,13.82456912,140.02,139.98,1.42850769]
[1724971315364,13.82456912,140.02,139.98,8.57230769]
[1724971315574,13.82456912,140.02,139.99,14.94900772]
[1724971316252,76.21868689,140.07,139.99,7.80570772]
[1724971316452,7.1394,140.07,140.02,15.6176]
[1724971316672,25.39537483,140.13,140.04,6.3772]
[1724971316870,6.2403,140.16,140.04,6.3772]
[1724971316871,13.82456912,140.1,140.05,7.1398]
[1724971317061,13.82456912,140.1,140.06,7.1397]
[1724971317367,13.82456912,140.16,140.1,17.8441]
[1724971317958,13.82456912,140.14,140.1,17.8441]
[1724971318164,13.82456912,140.12,140.08,21.9948]
[1724971318352,14.68987483,140.16,140.1,7.1376]
[1724971318549,13.82456912,140.14,140.1,7.1376]
[1724971318971,7.1351,140.16,140.1,7.1376]
[1724971319178,7.134,140.18,140.09,17.8456]
[1724971319371,7.1335,140.19,140.13,7.1361]
[1724971319558,13.82456912,140.17,140.13,7.1361]
[1724971319757,13.82456912,140.17,140.1,45.0]
[1724971319956,13.82456912,140.17,140.09,45.0]
[1724971320273,13.82456912,140.17,140.1,0.12549]
[1724971320460,13.82456912,140.17,140.1,7.26309]
[1724971320774,13.82456912,140.17,140.11,52.137]
[1724971321150,13.82456912,140.17,140.11,45.0]
[1724971321151,20.95886912,140.17,140.11,45.0]
[1724971321751,20.95886912,140.17,140.1,7.26319]
[1724971321752,7.1348,140.16,140.09,7.138]
[1724971321965,7.1358,140.14,140.09,7.138]
[1724971322167,7.1353,140.15,140.1,45.12549]
[1724971322361,7.1353,140.15,140.1,45.0]
[1724971322554,7.1358,140.14,140.1,45.0]
[1724971322872,7.1358,140.14,140.09,7.138]
[1724971323674,20.96036912,140.14,140.08,46.9792]
[1724971323854,7.1365,140.13,140.08,46.9792]
[1724971324179,20.96126912,140.12,140.08,21.9948]
[1724971325466,7.1367,140.12,140.08,21.9948]
[1724971326352,7.1362,140.13,140.08,29.1335]
[1724971326572,20.96066912,140.14,140.08,46.9799]
[1724971327277,20.96066912,140.14,140.09,52.1382]
[1724971327278,7.1361,140.14,140.09,52.1382]
[1724971328457,7.1352,140.15,140.1,7.1377]
[1724971328658,7.1357,140.14,140.09,52.1382]
[1724971328854,7.1363,140.13,140.08,46.98]
[1724971332279,7.1356,140.15,140.1,7.1373]
[1724971332502,13.82456912,140.17,140.11,7.1371]
[1724971332503,7.1347,140.16,140.11,7.1371]
[1724971332666,7.1353,140.15,140.1,7.1376]
[1724971333064,7.1353,140.15,140.11,1.42301829]
[1724971333585,7.1353,140.15,140.1,7.1376]
[1724971333586,17.8291,140.22,140.1,17.8433]
[1724971333783,13.82456912,140.18,140.11,45.25098]
[1724971334200,13.82456912,140.19,140.11,45.25098]
[1724971334372,7.1337,140.18,140.13,7.1362]
[1724971334559,7.1337,140.18,140.14,0.50875778]
[1724971334881,7.1337,140.18,140.14,22.06195778]
[1724971335097,7.1337,140.18,140.14,21.5532]
[1724971335292,7.1332,140.19,140.14,28.6888]
[1724971337685,7.134,140.18,140.14,21.5532]
[1724971339474,7.1332,140.19,140.15,52.1351]
[1724971339664,20.95726912,140.2,140.15,52.1351]
[1724971339984,7.1327,140.2,140.16,7.1347]
[1724971340169,7.1322,140.21,140.16,7.1347]
[1724971340375,20.95726912,140.2,140.16,7.1347]
[1724971340593,20.95726912,140.2,140.15,52.135]
[1724971340802,6.1332,140.19,140.15,7.135]
[1724971341099,6.1332,140.19,140.14,46.5272]
[1724971342490,7.1328,140.2,140.15,52.38578]
[1724971342994,25.38067483,140.25,140.18,7.1335]
[1724971343194,13.82456912,140.25,140.2,6.4865]
[1724971343696,7.1307,140.24,140.2,6.4865]
[1724971344196,7.1301,140.25,140.2,13.6189]
[1724971344704,7.1307,140.24,140.2,6.4865]
[1724971345189,7.1302,140.25,140.2,13.619]
[1724971345387,7.1306,140.24,140.2,6.4865]
[1724971347498,7.1312,140.23,140.2,6.4865]
[1724971347696,20.95516912,140.24,140.2,6.4865]
[1724971348404,7.1312,140.23,140.2,6.4865]
[1724971349481,13.82456912,140.24,140.19,15.406]
[1724971349698,43.19427483,140.3,140.19,15.406]
[1724971349902,13.82456912,140.25,140.19,15.406]
[1724971350503,7.1308,140.24,140.19,22.5387]
[1724971350799,7.1311,140.23,140.2,45.0]
[1724971351006,7.1311,140.23,140.19,15.406]
[1724971352296,13.82456912,140.24,140.19,15.406]
[1724971352297,7.1317,140.22,140.19,15.406]
[1724971353295,7.1312,140.23,140.19,15.406]
[1724971354317,7.132,140.22,140.19,15.406]
[1724971354521,7.1312,140.23,140.19,15.406]
[1724971355805,7.1303,140.25,140.19,15.406]
[1724971356002,20.95486912,140.25,140.19,15.406]
[1724971356619,20.95486912,140.25,140.19,22.5387]
[1724971358014,7.1297,140.26,140.21,7.132]
[1724971358315,20.95426912,140.26,140.21,7.132]
[1724971358822,7.1297,140.26,140.21,7.132]
[1724971359021,20.95426912,140.26,140.22,6.5148]
[1724971360415,7.1301,140.25,140.22,6.5148]
[1724971361117,20.95426912,140.26,140.22,6.5148]
[1724971361833,7.55477483,140.3,140.23,17.8277]
[1724971361997,7.1291,140.27,140.23,24.9588]
[1724971362199,13.82456912,140.28,140.24,7.1305]
[1724971362200,7.1286,140.28,140.24,7.1305]
[1724971363617,7.1282,140.29,140.25,7.13]
[1724971363828,7.1282,140.29,140.25,22.90289894]
[1724971364206,7.1281,140.29,140.25,22.4618]
[1724971364937,13.82456912,140.28,140.25,15.3318]
[1724971365230,20.95326912,140.28,140.25,15.3318]
[1724971366334,7.1287,140.28,140.25,15.3318]
[1724971367338,20.95266912,140.29,140.25,15.3318]
[1724971369039,13.82456912,140.29,140.25,15.3318]
[1724971369606,7.1271,140.31,140.26,31.55]
[1724971369925,7.1272,140.31,140.27,7.1289]
[1724971371127,7.1262,140.33,140.28,7.1285]
[1724971371319,7.1262,140.33,140.29,22.672]
[1724971371636,7.1255,140.34,140.29,29.7995]
[1724971372415,7.1261,140.33,140.29,29.7995]
[1724971373437,7.1261,140.33,140.29,22.672]
[1724971375016,20.95116912,140.32,140.29,22.672]
[1724971376032,7.1266,140.32,140.29,22.672]
[1724971376731,7.1261,140.33,140.29,22.672]
[1724971378054,20.95066912,140.33,140.29,22.672]
[1724971378541,7.1256,140.34,140.3,7.1274]
[1724971378717,17.8065,140.4,140.3,17.818]
[1724971378918,20.94966912,140.35,140.31,1.42520547]
[1724971379229,63.32812957,140.42,140.33,7.1258]
[1724971379230,13.82456912,140.37,140.33,7.1258]
[1724971379438,13.82456912,140.37,140.3,17.818]
[1724971379439,13.82456912,140.37,140.34,7.1255]
[1724971380240,13.82456912,140.37,140.33,7.126]
[1724971380539,7.1239,140.38,140.34,21.8442]
[1724971380540,20.94846912,140.38,140.34,21.8442]
[1724971381135,13.82456912,140.36,140.34,21.8442]
[1724971381882,7.1235,140.38,140.34,21.8442]
[1724971382026,7.124,140.37,140.34,21.8442]
[1724971382432,13.82456912,140.38,140.34,21.8442]
[1724971383549,13.82456912,140.36,140.31,21.8442]
[1724971383723,13.82456912,140.33,140.31,21.8442]
[1724971384739,7.1273,140.31,140.27,21.2763]
[1724971384940,20.95186912,140.31,140.27,21.2763]
[1724971385522,55.29827648,140.35,140.27,21.2763]
[1724971385523,13.82456912,140.29,140.27,21.2763]
[1724971385922,20.95276912,140.29,140.24,21.3055]
[1724971386149,41.37922687,140.29,140.24,21.3055]
[1724971386535,41.37922687,140.29,140.24,28.4359]
[1724971387251,7.1275,140.3,140.25,7.13]
[1724971387945,7.1275,140.3,140.24,21.3055]
[1724971387946,41.37802687,140.31,140.26,7.1295]
[1724971388325,52.06462687,140.35,140.27,7.129]
[1724971388326,7.1265,140.32,140.27,7.129]
[1724971390450,7.127,140.31,140.28,1.42109694]
[1724971390951,41.37802687,140.31,140.25,24.9542]
[1724971391137,41.37802687,140.31,140.26,7.1295]
[1724971393338,7.127,140.31,140.26,7.1295]
[1724971394035,7.127,140.31,140.24,21.3055]
[1724971394036,34.25102687,140.32,140.27,17.8218]
[1724971394233,34.25102687,140.32,140.28,7.1285]
[1724971395548,41.37772687,140.32,140.28,7.1285]
[1724971396437,41.37772687,140.32,140.27,17.8218]
[1724971397150,34.25102687,140.28,140.24,46.2617]
[1724971398027,41.38082687,140.26,140.24,21.3055]
[1724971398451,7.1292,140.27,140.24,21.3055]
[1724971399541,41.37962687,140.28,140.24,21.3055]
[1724971400340,7.1281,140.29,140.24,21.3055]
[1724971400659,34.25102687,140.3,140.24,21.3055]
[1724971401355,41.37862687,140.3,140.25,7.1301]
[1724971402535,34.25102687,140.28,140.25,7.1301]
[1724971402737,7.1276,140.3,140.25,7.1301]
[1724971402956,41.37862687,140.3,140.25,7.1301]
[1724971403255,34.25102687,140.32,140.26,1.42568952]
[1724971403440,41.37762687,140.32,140.27,1.42553661]
[1724971403645,34.25102687,140.32,140.27,1.42553661]
[1724971404158,34.25102687,140.32,140.28,7.1285]
[1724971405754,41.37762687,140.32,140.28,7.1285]
[1724971406657,41.37762687,140.32,140.27,7.1287]
[1724971408042,7.1261,140.33,140.28,7.1285]
[1724971409465,7.1261,140.33,140.29,1.42538699]
[1724971410470,34.25102687,140.3,140.27,17.8221]
[1724971410651,41.37862687,140.3,140.25,7.13]
[1724971410842,7.1282,140.29,140.24,46.2618]
[1724971411265,41.37872687,140.3,140.25,7.1298]
[1724971412385,7.1282,140.29,140.25,7.1298]
[1724971413176,34.25102687,140.26,140.21,17.8298]
[1724971413357,41.38062687,140.26,140.22,7.1316]
[1724971413556,34.25102687,140.26,140.22,7.1316]
[1724971414061,34.25102687,140.28,140.23,7.131]
[1724971414760,7.1291,140.27,140.22,7.1315]
[1724971415173,7.1296,140.26,140.21,24.9619]
[1724971415358,41.38062687,140.26,140.21,24.9619]
[1724971416661,53.4511,140.32,140.22,57.0636]
[1724971416662,34.25102687,140.32,140.22,57.0636]
[1724971416862,34.25102687,140.34,140.28,7.1284]
[1724971417077,7.1254,140.35,140.29,7.1279]
[1724971417279,34.25102687,140.34,140.29,7.1279]
[1724971417453,41.37652687,140.34,140.29,7.1279]
[1724971418284,34.25102687,140.32,140.29,7.1279]
[1724971420075,34.25102687,140.32,140.28,46.3555]
[1724971422160,7.1274,140.31,140.27,7.129]
[1724971422983,41.37762687,140.32,140.27,7.129]
[1724971424395,41.37762687,140.32,140.28,7.1284]
[1724971424562,34.25102687,140.32,140.28,7.1284]
[1724971424763,33.75102687,140.32,140.28,7.1284]
[1724971426183,34.25102687,140.34,140.3,7.1272]
[1724971429185,41.37652687,140.34,140.3,7.1272]
[1724971432091,13.69229632,140.32,140.3,7.1272]
[1724971437770,13.19229632,140.32,140.3,7.1272]
[1724971439579,13.19229632,140.32,140.3,8.54864966]
[1724971440399,13.19229632,140.32,140.3,7.1272]
[1724971441804,13.19229632,140.32,140.29,24.9471]
[1724971442487,13.19229632,140.32,140.3,7.1275]
[1724971443768,13.19229632,140.32,140.29,24.9472]
[1724971444704,13.19229632,140.32,140.3,7.1273]
[1724971445496,13.19229632,140.32,140.3,8.55155665]
[1724971447372,20.81789632,140.34,140.3,8.55155665]
[1724971448700,13.69229632,140.34,140.3,8.55155665]
[1724971448904,13.69229632,140.32,140.3,7.1273]
[1724971450198,13.69229632,140.34,140.3,7.1273]
[1724971450577,13.69229632,140.36,140.31,7.127]
[1724971451608,13.69229632,140.36,140.32,0.56131497]
[1724971452186,13.69229632,140.34,140.31,7.127]
[1724971453095,7.124,140.37,140.31,7.127]
[1724971453292,13.69229632,140.36,140.31,7.127]
[1724971454719,13.69229632,140.36,140.32,1.42514399]
[1724971456705,5.49067055,140.43,140.32,45.0]
[1724971457003,13.69229632,140.4,140.33,1.42354209]
[1724971457904,13.69229632,140.4,140.37,7.1239]
[1724971458416,13.69229632,140.41,140.38,7.1232]
[1724971460311,13.69229632,140.41,140.36,22.1124]
[1724971460615,13.19229632,140.39,140.36,22.1124]
[1724971471941,13.19229632,140.39,140.35,24.9369]
[1724971471942,20.31529632,140.39,140.35,24.9369]
[1724971472412,20.81669632,140.37,140.33,21.9461]
[1724971472721,70.59018528,140.42,140.33,29.0721]
[1724971472722,13.69229632,140.35,140.33,29.0721]
[1724971474926,20.81759632,140.35,140.3,7.1273]
[1724971475132,13.69229632,140.33,140.29,21.7683]
[1724971475301,13.69229632,140.33,140.29,28.8963]
[1724971475625,7.125,140.35,140.3,7.1273]
[1724971475925,13.69229632,140.35,140.33,7.1259]
[1724971476302,13.69229632,140.35,140.32,7.1264]
[1724971476919,7.124,140.37,140.33,7.126]
[1724971477132,13.69229632,140.37,140.33,7.126]
[1724971478226,20.81639632,140.37,140.33,7.126]
[1724971480735,7.1241,140.37,140.33,7.126]
[1724971480908,13.69229632,140.36,140.33,7.126]
[1724971482022,13.69229632,140.36,140.34,1.42491565]
[1724971482328,13.69229632,140.36,140.33,7.126]
[1724971486631,7.1236,140.38,140.34,7.1254]
[1724971486951,13.69229632,140.37,140.34,7.1254]
[1724971487507,13.69229632,140.37,140.33,7.1259]
[1724971489028,7.1224,140.41,140.36,7.1245]
[1724971489331,13.69229632,140.39,140.36,7.1245]
[1724971490531,13.69229632,140.39,140.35,17.8114]
[1724971491334,13.69229632,140.39,140.35,24.9362]
[1724971492326,13.69229632,140.4,140.36,7.1244]
[1724971494236,20.81479632,140.4,140.35,24.9363]
[1724971494539,13.69229632,140.38,140.35,24.9363]
[1724971495918,12.76783262,140.38,140.35,24.9363]
[1724971496218,12.76783262,140.38,140.36,7.1243]
[1724971496527,13.69229632,140.4,140.36,7.1243]
[1724971497627,7.122,140.41,140.36,7.1243]
[1724971497822,13.69229632,140.39,140.36,7.1243]
[1724971498027,13.69229632,140.39,140.35,24.9363]
[1724971499420,13.69229632,140.39,140.36,7.1244]
[1724971500324,13.69229632,140.37,140.34,22.3874]
[1724971500521,13.69229632,140.37,140.34,29.5128]
[1724971501034,13.69229632,140.37,140.34,22.3874]
[1724971501828,13.69229632,140.35,140.32,17.8158]
[1724971502010,13.69229632,140.35,140.31,16.5241]
[1724971502011,13.69229632,140.33,140.31,16.5241]
[1724971506525,7.125,140.35,140.31,16.5241]
[1724971506740,15.4515,140.42,140.31,16.5241]
[1724971507044,20.81529632,140.39,140.35,7.1249]
[1724971507341,1.24157465,140.45,140.35,7.1249]
[1724971507342,15.6278,140.45,140.36,6.1567]
[1724971507521,7.1216,140.42,140.37,7.1236]
[1724971507846,13.69229632,140.4,140.36,21.2944]
[1724971508152,13.69229632,140.4,140.36,28.4185]
[1724971509525,13.69229632,140.4,140.32,45.0]
[1724971509526,20.81589632,140.38,140.34,7.1255]
[1724971509738,13.69229632,140.38,140.34,7.1255]
[1724971511348,13.69229632,140.38,140.32,39.848]
[1724971511349,13.69229632,140.36,140.32,46.9741]
[1724971511734,20.81629632,140.37,140.33,7.126]
[1724971511929,13.69229632,140.37,140.33,7.126]
[1724971512135,13.69229632,140.37,140.34,7.1252]
[1724971512646,1.24140002,140.47,140.35,30.0]
[1724971512847,7.1199,140.45,140.4,7.122]
[1724971513030,19.03365287,140.51,140.42,21.1213]
[1724971513236,1.24105287,140.51,140.48,7.1183]
[1724971513535,1.24105287,140.51,140.43,46.54863115]
[1724971513536,14.93334919,140.51,140.47,17.7961]
[1724971514238,1.24105287,140.51,140.48,21.1213]
[1724971514427,13.69229632,140.54,140.48,21.1213]
[1724971514623,13.69229632,140.52,140.48,28.2396]
[1724971514826,7.1159,140.54,140.48,28.2396]
[1724971515033,13.69229632,140.52,140.47,17.7961]
[1724971515345,20.80979632,140.5,140.45,21.1213]
[1724971515719,13.69229632,140.46,140.41,21.1213]
[1724971515920,13.66450864,140.54,140.41,21.1213]
[1724971515921,15.3599,140.51,140.41,21.1213]
[1724971516128,13.69229632,140.48,140.41,21.1213]
[1724971516335,13.66450864,140.54,140.41,21.1213]
[1724971516336,13.69229632,140.5,140.42,17.803]
[1724971516922,20.80979632,140.5,140.44,7.1202]
[1724971517936,21.789,140.54,140.41,34.81359632]
[1724971517937,20.81169632,140.46,140.41,28.2432]
[1724971518135,13.69229632,140.44,140.41,21.1213]